fUST/lending_fUST_20250310
["ID","MTS","AMOUNT","RATE_DAILY","PERIOD"]
[355823079,1741620642630,-2521.843251,0.0004869,120]
[355823081,1741620642640,-199.723795,0.0004869,120]
[355823082,1741620642650,-199.723795,0.0004869,120]
[355823083,1741620642660,-151.0,0.000487,30]
[355823084,1741620642670,-168652.16894449,0.000487,8]
[355823085,1741620642683,-882.32968452,0.000487,8]
[355823086,1741620642694,-151.0,0.000487,120]
[355823087,1741620642704,-151.0,0.000487,120]
[355823088,1741620642716,-2521.843251,0.000487,120]
[355823089,1741620642725,-2521.8432502,0.000487,120]
[355823090,1741620642735,-199.723795,0.000487,120]
[355823092,1741620642745,-199.723802,0.000487,120]
[355823094,1741620642755,-3825.14,0.00048767,120]
[355823095,1741620642764,-151.0,0.00048871,2]
[355823097,1741620642774,-600.0,0.00048871,2]
[355823099,1741620642787,-151.0,0.00048873,120]
[355823100,1741620642796,-151.0,0.00048873,120]
[355823105,1741620642807,-151.0,0.00048873,120]
[355823109,1741620642817,-151.0,0.00048873,120]
[355823112,1741620642827,-150.0,0.00048889,30]
[355823116,1741620642837,-151.0,0.0004889,120]
[355823120,1741620642847,-208.01627,0.0004889,120]
[355823124,1741620642857,-208.01627,0.0004889,120]
[355823127,1741620642867,-151.0,0.0004889,120]
[355823130,1741620642877,-151.0,0.0004889,120]
[355823133,1741620642888,-271.156766,0.0004889,120]
[355823140,1741620642898,-151.0,0.0004889,110]
[355823146,1741620642908,-151.0,0.0004889,120]
[355823149,1741620642918,-206.837105,0.0004889,120]
[355823153,1741620642931,-206.837105,0.0004889,120]
[355823157,1741620642942,-151.0,0.0004889,120]
[355823162,1741620642952,-457.453523,0.0004889,120]
[355823164,1741620642963,-457.453523,0.0004889,120]
[355823168,1741620642974,-559.2277934,0.00048896,30]
[355823170,1741620642984,-2000000.0,0.00048899,2]
[355823172,1741620642994,-4745.0,0.000489,120]
[355823173,1741620643004,-4745.0,0.000489,120]
[355823174,1741620643013,-4745.0,0.000489,120]
[355823175,1741620643127,-4745.0,0.000489,120]
[355823176,1741620643138,-4745.0,0.000489,120]
[355823177,1741620643148,-4745.0,0.000489,120]
[355823178,1741620643158,-4745.0,0.000489,120]
[355823179,1741620643168,-4745.0,0.000489,120]
[355823180,1741620643181,-4745.0,0.000489,120]
[355823181,1741620643191,-4745.0,0.000489,120]
[355823182,1741620643201,-9191.05871279,0.000489,120]
[355823183,1741620643211,-535.08,0.000489,30]
[355823184,1741620643220,-182.12,0.000489,30]
[355823185,1741620643230,-151.0,0.000489,120]
[355823186,1741620643241,-151.0,0.000489,120]
[355823187,1741620643251,-151.0,0.000489,120]
[355823188,1741620643260,-151.0,0.000489,120]
[355823189,1741620643271,-151.0,0.000489,90]
[355823190,1741620643280,-151.0,0.000489,90]
[355823191,1741620643290,-151.0,0.000489,120]
[355823192,1741620643300,-255.088096,0.000489,120]
[355823193,1741620643311,-151.0,0.000489,120]
[355823194,1741620643322,-151.0,0.000489,120]
[355823195,1741620643331,-194.265488,0.000489,120]
[355823196,1741620643341,-151.0,0.000489,120]
[355823197,1741620643351,-151.0,0.000489,120]
[355823198,1741620643361,-161.571884,0.000489,120]
[355823199,1741620643371,-161.571884,0.000489,120]
[355823200,1741620643381,-208.01627,0.000489,120]
[355823201,1741620643391,-208.01628,0.000489,120]
[355823202,1741620643400,-151.0,0.000489,120]
[355823203,1741620643411,-151.0,0.000489,120]
[355823204,1741620643420,-151.0,0.000489,120]
[355823205,1741620643434,-151.0,0.000489,120]
[355823206,1741620643443,-151.0,0.000489,120]
[355823207,1741620643453,-296.91817,0.000489,120]
[355823208,1741620643463,-151.0,0.000489,110]
[355823209,1741620643472,-151.0,0.000489,120]
[355823210,1741620643483,-151.0,0.000489,120]
[355823211,1741620643492,-151.0,0.000489,120]
[355823212,1741620643502,-151.0,0.000489,120]
[355823213,1741620643512,-151.0,0.000489,120]
[355823214,1741620643522,-151.0,0.000489,120]
[355823215,1741620643531,-457.453523,0.000489,120]
[355823216,1741620643540,-457.453522,0.000489,120]
[355823217,1741620643549,-622.2,0.00048926,2]
[355823218,1741620643558,-213.98107202,0.00048973,10]
[355823219,1741620643567,-645.2214,0.00048981,2]
[355823220,1741620643577,-151.0,0.0004899,120]
[355823221,1741620643586,-267.86790954,0.00048999,2]
[355823222,1741620643596,-954.0,0.00049,120]
[355823223,1741620643605,-50000.0,0.00049,8]
[355823224,1741620643615,-1000.0,0.00049,120]
[355823225,1741620643625,-151.0,0.00049,120]
[355823226,1741620643635,-151.0,0.00049,120]
[355823227,1741620643644,-151.0,0.00049,120]
[355823228,1741620643653,-246.936487,0.00049,30]
[355823229,1741620643662,-246.936487,0.00049,30]
[355823230,1741620643671,-151.0,0.00049,120]
[355823231,1741620643683,-151.0,0.00049,26]
[355823232,1741620643692,-151.0,0.00049,120]
[355823233,1741620643707,-151.0,0.00049,120]
[355823234,1741620643716,-239.304548,0.00049,120]
[355823235,1741620643725,-151.0,0.00049,90]
[355823236,1741620643735,-151.0,0.00049,120]
[355823237,1741620643746,-161.571884,0.00049,120]
[355823238,1741620643756,-161.571884,0.00049,120]
[355823239,1741620643766,-151.0,0.00049,120]
[355823240,1741620643776,-151.0,0.00049,120]
[355823241,1741620643786,-151.0,0.00049,120]
[355823242,1741620643797,-11423.0,0.00049,120]
[355823243,1741620643807,-1022.29377126,0.00049,120]
[355823244,1741620643817,-165.57429306,0.00049,30]
[355823245,1741620643827,-909071.46471131,0.00049,90]
[355823246,1741620643838,-2000.0,0.00049,90]
[355823247,1741620643848,-16500.0,0.00049,120]
[355823248,1741620643857,-669.0945918,0.00049036,2]
[355823249,1741620643867,-151.0,0.0004909,120]
[355823250,1741620643877,-151.0,0.0004909,120]
[355823251,1741620643886,-693.8510917,0.00049091,2]
[355823252,1741620643896,-4515.43169551,0.000491,2]
[355823253,1741620643906,-20000.0,0.000491,30]
[355823254,1741620643916,-151.0,0.000491,26]
[355823255,1741620643929,-203.135811,0.000491,120]
[355823256,1741620643940,-151.0,0.000491,90]
[355823257,1741620643951,-151.0,0.000491,120]
[355823258,1741620643962,-151.0,0.00049115,120]
[355823259,1741620643972,-151.0,0.00049115,120]
[355823260,1741620643983,-719.52358209,0.00049146,2]
[355823261,1741620643993,-151.0,0.000492,28]
[355823262,1741620644004,-746.14595463,0.00049201,2]
[355823263,1741620644013,-151.0,0.00049205,120]
[355823264,1741620644023,-151.0,0.00049205,120]
[355823265,1741620644033,-152.342075,0.00049205,120]
[355823266,1741620644043,-246.936487,0.00049205,30]
[355823267,1741620644053,-246.936487,0.00049205,30]
[355823268,1741620644063,-151.0,0.00049205,120]
[355823269,1741620644072,-151.0,0.00049205,120]
[355823270,1741620644083,-161.571884,0.00049205,120]
[355823271,1741620644094,-161.571884,0.00049205,120]
[355823272,1741620644104,-151.0,0.00049215,120]
[355823273,1741620644114,-188.359881,0.00049215,120]
[355823274,1741620644124,-246.936487,0.00049215,30]
[355823275,1741620644134,-246.936487,0.00049215,30]
[355823276,1741620644145,-164.682165,0.00049215,120]
[355823277,1741620644155,-151.0,0.00049215,120]
[355823278,1741620644166,-151.0,0.00049215,90]
[355823279,1741620644184,-151.0,0.00049215,120]
[355823280,1741620644197,-161.571884,0.00049215,120]
[355823281,1741620644207,-161.571884,0.00049215,120]
[355823282,1741620644217,-773.75335495,0.00049256,2]
[355823283,1741620644227,-151.0,0.000493,27]
[355823284,1741620644238,-151.0,0.000493,24]
[355823285,1741620644248,-427.61,0.000493,30]
[355823286,1741620644258,-802.38222908,0.00049311,2]
[355823287,1741620644269,-151.0,0.00049315,120]
[355823288,1741620644279,-151.0,0.00049315,120]
[355823289,1741620644290,-151.0,0.00049315,10]
[355823290,1741620644300,-151.0,0.00049315,120]
[355823291,1741620644310,-154.057462,0.00049315,120]
[355823292,1741620644320,-151.0,0.00049315,120]
[355823293,1741620644329,-246.936487,0.00049315,30]
[355823294,1741620644339,-246.936487,0.00049315,30]
[355823295,1741620644349,-151.0,0.00049315,120]
[355823296,1741620644359,-301.515982,0.00049315,90]
[355823297,1741620644369,-151.0,0.00049315,120]
[355823298,1741620644378,-161.571884,0.00049315,120]
[355823299,1741620644388,-161.571884,0.00049315,120]
[355823300,1741620644398,-1094.34,0.00049315,2]
[355823301,1741620644409,-151.0,0.00049315,120]
[355823302,1741620644418,-151.0,0.00049315,120]
[355823303,1741620644431,-3825.14,0.00049315,120]
[355823304,1741620644441,-1000.0,0.00049315,120]
[355823305,1741620644565,-160.65563768,0.00049315,10]
[355823306,1741620644575,-50000.0,0.00049315,30]
[355823307,1741620644585,-151.0,0.00049315,7]
[355823308,1741620644595,-151.0,0.00049315,7]
[355823309,1741620644605,-151.0,0.00049315,7]
[355823310,1741620644615,-151.0,0.00049315,7]
[355823311,1741620644625,-151.0,0.00049315,7]
[355823312,1741620644634,-151.0,0.00049315,7]
[355823313,1741620644645,-151.0,0.00049315,7]
[355823314,1741620644654,-151.0,0.00049315,7]
[355823315,1741620644664,-151.0,0.00049315,7]
[355823316,1741620644678,-151.0,0.00049315,7]
[355823317,1741620644687,-151.0,0.00049315,7]
[355823318,1741620644698,-151.0,0.00049315,7]
[355823319,1741620644709,-151.0,0.00049315,7]
[355823320,1741620644719,-239.51515,0.00049315,7]
[355823321,1741620644731,-565.465931,0.00049315,120]
[355823322,1741620644741,-1000.0,0.00049342,120]
[355823323,1741620644751,-832.07037156,0.00049366,2]
[355823324,1741620644761,-1000.0,0.00049369,120]
[355823325,1741620644771,-1000.0,0.00049397,120]
[355823326,1741620644782,-151.0,0.000494,24]
[355823327,1741620644792,-7724.5375681,0.000494,2]
[355823328,1741620644802,-70344.90874778,0.000494,120]
[355823329,1741620644812,-862.8569753,0.00049421,2]
[355823330,1741620644821,-1000.0,0.00049424,120]
[355823331,1741620644832,-1000.0,0.00049452,120]
[355823332,1741620644842,-500.0,0.00049473,10]
[355823333,1741620644852,-894.78268339,0.00049476,2]
[355823334,1741620644863,-1000.0,0.00049479,120]
[355823335,1741620644874,-1000.0,0.000495,30]
[355823336,1741620644884,-151.0,0.000495,25]
[355823337,1741620644894,-200000.0,0.000495,30]
[355823338,1741620644904,-15361.043864,0.000495,120]
[355823339,1741620644914,-1000.0,0.00049506,120]
[355823340,1741620644927,-927.88964268,0.00049531,2]
[355823341,1741620644938,-1000.0,0.00049534,120]
[355823343,1741620644948,-156.34543567,0.00049534,120]
[355823345,1741620644958,-1000.0,0.00049561,120]
[355823347,1741620644968,-962.22155946,0.00049586,2]
[355823348,1741620644978,-1000.0,0.00049589,120]
[355823350,1741620644988,-151.0,0.000496,120]
[355823351,1741620644998,-151.0,0.000496,29]
[355823352,1741620645009,-500.0,0.00049605,95]
[355823353,1741620645018,-1000.0,0.00049616,120]
[355823354,1741620645028,-997.82375716,0.00049641,2]
[355823355,1741620645038,-1000.0,0.00049643,120]
[355823356,1741620645048,-1029.76226079,0.00049671,120]
[355823357,1741620645059,-1034.74323617,0.00049696,2]
[355823358,1741620645068,-151.0,0.000497,30]
[355823359,1741620645079,-3000.0,0.000497,2]
[355823360,1741620645089,-1000.0,0.000497,60]
[355823361,1741620645099,-500.0,0.00049705,97]
[355823362,1741620645108,-559.2277934,0.00049718,30]
[355823363,1741620645118,-559.2277934,0.00049718,30]
[355823364,1741620645128,-559.2277934,0.00049729,30]
[355823365,1741620645138,-559.2277934,0.00049729,30]
[355823366,1741620645148,-559.2277934,0.00049729,30]
[355823367,1741620645158,-559.2277934,0.00049729,30]
[355823368,1741620645168,-559.0265757,0.00049729,30]
[355823369,1741620645180,-159.408748,0.0004975,10]
[355823370,1741620645189,-1073.02873591,0.00049751,2]
[355823371,1741620645199,-1063.8577815,0.0004977,30]
[355823372,1741620645209,-500.0,0.00049773,10]
[355823373,1741620645219,-151.0,0.00049773,120]
[355823374,1741620645228,-151.0,0.0004979,120]
[355823375,1741620645238,-246.936487,0.0004979,30]
[355823376,1741620645248,-246.936487,0.0004979,30]
[355823377,1741620645259,-151.0,0.0004979,120]
[355823378,1741620645268,-151.0,0.0004979,120]
[355823379,1741620645278,-161.571884,0.0004979,120]
[355823380,1741620645288,-161.571884,0.0004979,120]
[355823381,1741620645298,-487420.6083229,0.000498,7]
[355823382,1741620645309,-226.5,0.000498,120]
[355823383,1741620645319,-151.0,0.000498,120]
[355823384,1741620645328,-151.0,0.000498,120]
[355823385,1741620645338,-151.0,0.000498,120]
[355823386,1741620645348,-246.936487,0.000498,30]
[355823387,1741620645358,-246.936487,0.000498,30]
[355823388,1741620645369,-151.0,0.000498,120]
[355823389,1741620645379,-161.571884,0.000498,120]
[355823390,1741620645388,-161.571884,0.000498,120]
[355823391,1741620645398,-30000.0,0.000498,8]
[355823392,1741620645408,-500.0,0.00049805,96]
[355823393,1741620645419,-1112.73079914,0.00049806,2]
[355823394,1741620645432,-156.34543567,0.00049808,120]
[355823395,1741620645443,-1153.9018387,0.00049861,2]
[355823396,1741620645453,-3825.14,0.00049863,120]
[355823397,1741620645463,-200.0,0.000499,2]
[355823398,1741620645473,-151.0,0.000499,120]
[355823399,1741620645483,-246.936487,0.000499,30]
[355823400,1741620645493,-246.936487,0.000499,30]
[355823401,1741620645503,-151.0,0.000499,120]
[355823402,1741620645513,-161.571884,0.000499,120]
[355823403,1741620645524,-161.571884,0.000499,120]
[355823404,1741620645534,-183.967461,0.000499,2]
[355823405,1741620645544,-197730.28090682,0.000499,120]
[355823406,1741620645554,-202.096084,0.000499,3]
[355823407,1741620645564,-500.0,0.00049905,95]
[355823408,1741620645574,-1800.0,0.00049916,2]
[355823409,1741620645584,-1315060.85696308,0.0004995,60]
[355823410,1741620645594,-419.06503209,0.00049956,120]
[355823411,1741620645604,-151.0,0.00049969,120]
[355823412,1741620645615,-151.0,0.0004997,120]
[355823413,1741620645625,-2847.0,0.0004998,120]
[355823414,1741620645635,-56609.94940728,0.0004999,30]
[355823415,1741620645645,-413.13940178,0.00049999,120]
[355823416,1741620645654,-455.62829034,0.00049999,31]
[355823417,1741620645664,-423.55710667,0.00049999,31]
[355823418,1741620645675,-532.01502031,0.00049999,120]
[355823419,1741620645684,-387.25965141,0.00049999,2]
[355823420,1741620645695,-1068550.38431539,0.0005,2]
[355823421,1741620645705,-1000.0,0.0005,120]
[355823422,1741620645718,-460.0,0.0005,61]
[355823423,1741620645728,-1000.0,0.0005,2]
[355823425,1741620645739,-535.08,0.0005,30]
[355823427,1741620645750,-151.0,0.0005,120]
[355823429,1741620645760,-151.0,0.0005,120]
[355823431,1741620645770,-246.936487,0.0005,30]
[355823432,1741620645878,-246.936487,0.0005,30]
[355823433,1741620645889,-246.936487,0.0005,30]
[355823434,1741620645899,-246.936487,0.0005,30]
[355823435,1741620645909,-151.0,0.0005,120]
[355823436,1741620645920,-151.0,0.0005,120]
[355823438,1741620645933,-161.571884,0.0005,120]
[355823439,1741620645947,-161.571884,0.0005,120]
[355823440,1741620645958,-161.571884,0.0005,120]
[355823442,1741620645968,-161.571886,0.0005,120]
[355823444,1741620645978,-9217.04607364,0.0005,120]
[355823446,1741620645990,-250.0,0.0005,120]
[355823448,1741620646001,-1000.0,0.0005,120]
[355823451,1741620646011,-250.0,0.0005,120]
[355823453,1741620646022,-250.0,0.0005,120]
[355823455,1741620646032,-250.0,0.0005,120]
[355823456,1741620646042,-250.0,0.0005,120]
[355823457,1741620646052,-250.0,0.0005,120]
[355823458,1741620646062,-427.61,0.0005,30]
[355823459,1741620646072,-1332.02298865,0.0005,120]
[355823460,1741620646081,-500.0,0.00050005,98]
[355823461,1741620646091,-800.0,0.00050013,30]
[355823462,1741620646101,-156.34543567,0.00050055,120]
[355823463,1741620646111,-500.0,0.00050105,94]
[355823464,1741620646121,-500.0,0.00050205,98]
[355823465,1741620646131,-150.0,0.00050259,30]
[355823466,1741620646142,-500.0,0.00050305,95]
[355823467,1741620646152,-156.34543567,0.00050329,120]
[355823468,1741620646163,-500.0,0.00050405,98]
[355823469,1741620646172,-3825.14,0.0005041,120]
[355823470,1741620646183,-268.32,0.000505,48]
[355823471,1741620646194,-268.32,0.000505,48]
[355823472,1741620646204,-268.32,0.000505,48]
[355823473,1741620646215,-268.32,0.000505,48]
[355823474,1741620646225,-268.32,0.000505,48]
[355823475,1741620646235,-268.32,0.000505,48]
[355823476,1741620646245,-268.32,0.000505,48]
[355823477,1741620646255,-268.32,0.000505,48]
[355823478,1741620646266,-268.32,0.000505,48]
[355823479,1741620646276,-268.32,0.000505,48]
[355823480,1741620646286,-268.32,0.000505,48]
[355823481,1741620646296,-268.32,0.000505,48]
[355823482,1741620646305,-500.0,0.00050505,99]
[355823483,1741620646315,-150.0,0.00050517,2]
[355823484,1741620646325,-398.0,0.00050517,2]
[355823485,1741620646335,-1000.0,0.00050547,120]
[355823486,1741620646345,-1000.0,0.00050547,120]
[355823487,1741620646355,-1000.0,0.00050547,120]
[355823488,1741620646365,-519.93929613,0.00050547,120]
[355823489,1741620646375,-800.0,0.00050549,30]
[355823490,1741620646385,-151.0,0.00050551,120]
[355823491,1741620646394,-246.936487,0.00050551,30]
[355823492,1741620646404,-246.936481,0.00050551,30]
[355823493,1741620646414,-800.0,0.00050577,30]
[355823494,1741620646424,-800.0,0.00050581,30]
[355823495,1741620646436,-156.34543567,0.00050603,120]
[355823496,1741620646447,-500.0,0.00050605,93]
[355823497,1741620646457,-1094.34,0.00050684,2]
[355823498,1741620646467,-500.0,0.00050684,7]
[355823499,1741620646476,-500.0,0.0005069,60]
[355823500,1741620646486,-427.61,0.000507,30]
[355823501,1741620646496,-500.0,0.00050705,90]
[355823502,1741620646506,-582.50023953,0.00050729,7]
[355823503,1741620646516,-227.74762384,0.00050742,30]
[355823504,1741620646527,-417.38,0.000508,30]
[355823505,1741620646537,-2168.87,0.000508,30]
[355823506,1741620646547,-179.37,0.000508,30]
[355823507,1741620646556,-1003.86,0.000508,2]
[355823508,1741620646566,-500.0,0.00050805,96]
[355823509,1741620646576,-156.34543567,0.00050849,120]
[355823510,1741620646586,-500.0,0.00050873,10]
[355823511,1741620646595,-69295.37082303,0.00050887,30]
[355823512,1741620646605,-69295.37082303,0.00050887,30]
[355823513,1741620646615,-31687.44208105,0.00050887,30]
[355823514,1741620646625,-26640.15872538,0.00050887,30]
[355823515,1741620646634,-26640.15872538,0.00050887,30]
[355823516,1741620646644,-26527.01867126,0.00050887,30]
[355823517,1741620646654,-26527.01867126,0.00050887,30]
[355823518,1741620646664,-10432.22291493,0.00050887,30]
[355823519,1741620646674,-10432.22291493,0.00050887,30]
[355823520,1741620646686,-5638.7192238,0.00050887,30]
[355823521,1741620646698,-5638.7192238,0.00050887,30]
[355823522,1741620646710,-10358.8693535,0.00050887,30]
[355823523,1741620646720,-101263.521407,0.00050887,30]
[355823524,1741620646730,-101263.521407,0.00050887,30]
[355823525,1741620646740,-150.43,0.00050887,30]
[355823526,1741620646751,-150.43,0.00050887,30]
[355823527,1741620646760,-203.90485185,0.00050887,30]
[355823528,1741620646771,-158.0862398,0.00050887,30]
[355823529,1741620646782,-150.43,0.00050887,30]
[355823530,1741620646792,-150.43,0.00050887,30]
[355823531,1741620646803,-262.27258298,0.00050887,30]
[355823532,1741620646812,-500.0,0.00050887,30]
[355823533,1741620646822,-697.36916461,0.00050887,30]
[355823534,1741620646832,-150.43,0.00050887,2]
[355823535,1741620646842,-150.43,0.00050887,30]
[355823536,1741620646852,-150.43,0.00050887,30]
[355823537,1741620646862,-276.84948267,0.00050887,30]
[355823538,1741620646872,-150.43,0.00050887,2]
[355823540,1741620646882,-2109.0,0.00050887,30]
[355823542,1741620646892,-2109.0,0.00050887,30]
[355823543,1741620646902,-2109.0,0.00050887,30]
[355823544,1741620646912,-2109.0,0.00050887,30]
[355823545,1741620646922,-2109.0,0.00050887,30]
[355823546,1741620646934,-2109.0,0.00050887,30]
[355823547,1741620646943,-2109.0,0.00050887,30]
[355823549,1741620646954,-2109.0,0.00050887,30]
[355823550,1741620646965,-2109.0,0.00050887,30]
[355823551,1741620646976,-2109.0,0.00050887,30]
[355823552,1741620646986,-2109.0,0.00050887,30]
[355823553,1741620646995,-2109.0,0.00050887,30]
[355823554,1741620647103,-2109.0,0.00050887,30]
[355823555,1741620647114,-2109.0,0.00050887,30]
[355823556,1741620647124,-2109.0,0.00050887,30]
[355823557,1741620647134,-2109.0,0.00050887,30]
[355823558,1741620647144,-2109.0,0.00050887,30]
[355823559,1741620647154,-2109.0,0.00050887,30]
[355823560,1741620647164,-2109.0,0.00050887,30]
[355823561,1741620647173,-2121.65695463,0.00050887,30]
[355823562,1741620647184,-500.0,0.00050887,30]
[355823563,1741620647194,-500.0,0.00050887,30]
[355823564,1741620647204,-500.0,0.00050887,30]
[355823565,1741620647214,-500.0,0.00050887,30]
[355823566,1741620647224,-500.0,0.00050887,30]
[355823567,1741620647234,-500.0,0.00050887,30]
[355823568,1741620647244,-500.0,0.00050887,30]
[355823569,1741620647254,-500.0,0.00050887,30]
[355823570,1741620647264,-500.0,0.00050887,30]
[355823571,1741620647273,-500.0,0.00050887,30]
[355823572,1741620647283,-500.0,0.00050887,30]
[355823573,1741620647293,-590.56073626,0.00050887,30]
[355823574,1741620647303,-500.0,0.00050887,2]
[355823575,1741620647313,-500.0,0.00050887,2]
[355823576,1741620647322,-500.0,0.00050887,2]
[355823578,1741620647332,-500.0,0.00050887,2]
[355823579,1741620647342,-500.0,0.00050887,2]
[355823580,1741620647351,-500.0,0.00050887,2]
[355823581,1741620647360,-500.0,0.00050887,2]
[355823582,1741620647369,-768.77293019,0.00050887,2]
[355823583,1741620647379,-150.43,0.00050887,30]
[355823584,1741620647388,-150.43,0.00050887,30]
[355823585,1741620647397,-150.43,0.00050887,30]
[355823586,1741620647407,-152.22535786,0.00050887,30]
[355823587,1741620647416,-205.00501808,0.00050887,30]
[355823588,1741620647427,-164.82,0.000509,30]
[355823589,1741620647436,-300.0,0.000509,27]
[355823590,1741620647446,-500.0,0.00050905,97]
[355823591,1741620647456,-1058.77897483,0.00050942,2]
[355823592,1741620647465,-462.48854778,0.00050942,120]
[355823593,1741620647475,-500.0,0.00050958,120]
[355823594,1741620647485,-511.38719428,0.00050958,120]
[355823595,1741620647495,-500.0,0.00050958,120]
[355823596,1741620647505,-519.79742808,0.00050958,2]
[355823597,1741620647514,-500.0,0.00050958,120]
[355823598,1741620647524,-1283.75,0.00050958,120]
[355823599,1741620647534,-500.0,0.00050958,120]
[355823600,1741620647544,-1500.0,0.00050958,2]
[355823601,1741620647554,-500.0,0.00050958,120]
[355823602,1741620647563,-611.61,0.00050958,120]
[355823603,1741620647573,-500.0,0.00050958,120]
[355823604,1741620647586,-511.93299344,0.00050958,120]
[355823605,1741620647611,-524.81145175,0.00050958,120]
[355823606,1741620647629,-511.38631553,0.00050958,120]
[355823607,1741620647650,-500.0,0.00050958,120]
[355823608,1741620647672,-500.0,0.00050958,120]
[355823609,1741620647692,-500.0,0.00050958,120]
[355823610,1741620647717,-500.0,0.00050958,120]
[355823611,1741620647734,-500.0,0.00050958,120]
[355823612,1741620647753,-521.11361991,0.00050958,120]
[355823613,1741620647773,-573.03282652,0.00050958,120]
[355823614,1741620647798,-543.32344499,0.00050958,120]
[355823615,1741620647813,-500.0,0.00050958,120]
[355823616,1741620647831,-265.31269208,0.00050958,120]
[355823617,1741620647849,-500.0,0.00050958,120]
[355823618,1741620647866,-500.0,0.00050958,120]
[355823619,1741620647881,-516.90094779,0.00050958,120]
[355823620,1741620647900,-500.0,0.00050958,120]
[355823621,1741620647916,-500.0,0.00050958,120]
[355823622,1741620647933,-500.0,0.00050958,120]
[355823623,1741620647949,-500.0,0.00050958,120]
[355823624,1741620647967,-500.0,0.00050958,120]
[355823625,1741620647983,-500.0,0.00050958,120]
[355823626,1741620648000,-500.0,0.00050958,120]
[355823627,1741620648017,-500.0,0.00050958,120]
[355823628,1741620648034,-500.0,0.00050958,120]
[355823629,1741620648055,-500.0,0.00050958,120]
[355823630,1741620648074,-448.17933934,0.00050958,120]
[355823631,1741620648092,-519.6610514,0.00050958,120]
[355823632,1741620648110,-500.0,0.00050958,120]
[355823633,1741620648128,-500.0,0.00050958,2]
[355823634,1741620648146,-501.4787037,0.00050958,2]
[355823635,1741620648167,-500.0,0.00050958,120]
[355823636,1741620648187,-177.51122497,0.00050958,120]
[355823637,1741620648208,-500.0,0.00050958,120]
[355823638,1741620648227,-500.0,0.00050958,120]
[355823639,1741620648245,-500.0,0.00050958,120]
[355823640,1741620648264,-213.73358802,0.00050958,120]
[355823641,1741620648283,-535.4769315,0.00050958,120]
[355823642,1741620648303,-547.30443536,0.00050958,120]
[355823643,1741620648322,-500.0,0.00050958,120]
[355823644,1741620648342,-500.0,0.00050958,120]
[355823645,1741620648360,-500.0,0.00050958,120]
[355823646,1741620648377,-500.0,0.00050958,120]
[355823647,1741620648395,-1427.28,0.00050958,120]
[355823648,1741620648413,-500.0,0.00050958,120]
[355823649,1741620648430,-536.05467378,0.00050958,120]
[355823650,1741620648447,-567.5,0.00050958,120]
[355823651,1741620648465,-482.93750675,0.00050958,120]
[355823652,1741620648482,-500.0,0.00050958,120]
[355823653,1741620648499,-562.22649876,0.00050958,120]
[355823654,1741620648516,-519.17496814,0.00050958,120]
[355823655,1741620648691,-500.0,0.00050958,120]
[355823656,1741620648719,-503.90740809,0.00050958,120]
[355823657,1741620648730,-500.0,0.00050958,120]